Cogmind - Beta 13 @@@ ROGUE MODE // 2024.06.01 @ 08:39:01 Player: tauceti Result: Destroyed by as-74749 with Assembled Rifle Performance ------------- Evolutions (0) 0 Regions Visited (2) 400 Robots Destroyed (26) 130 Value Destroyed (646) 646 Prototype IDs (0) 0 Alien Tech Used (0) 0 Bonus (0) 0 TOTAL SCORE: 1176 Bonus ------- None Cogmind --------- Core Integrity 0/250 Matter 300/300 Energy 265/265 System Corruption 0% Temperature Cool (0) Movement Treading (240) Ox1 Location -10/Mines Parts ------- > --- POWER (1) -------- Improved Ion Engine > --- PROPULSION (2) --- Light Treads Compact Wheel > --- UTILITY (2) ------ Improved Heat Sink Large Storage Unit > --- WEAPON (2) ------- Assault Rifle > --- INVENTORY (15) --- Improved Ion Engine Light Treads Aluminum Leg Aluminum Leg Improved Heat Sink Sensor Array Signal Interpreter Hacking Suite Heavy EM Pulse Gun Particle Gun Particle Gun Light Assault Rifle Makeshift Axe Peak State ------------ > --- POWER ------------ Improved Ion Engine > --- PROPULSION ------- Light Treads Wheel > --- UTILITY ---------- Improved Heat Sink Large Storage Unit > --- WEAPON ----------- Particle Gun Assault Rifle > --- INVENTORY -------- Light Treads Aluminum Leg Aluminum Leg Compact Wheel Sensor Array Signal Interpreter Hacking Suite Heavy EM Pulse Gun Heavy EM Pulse Gun Small Laser Light Assault Rifle Light Assault Rifle [Rating: 12] Favorites ----------- Power Improved Ion Engine Engine Improved Ion Engine Propulsion Light Treads Treads Light Treads Wheel Wheel Utility Large Storage Unit Device Improved Heat Sink Storage Large Storage Unit Weapon Assault Rifle Energy Gun Small Laser Ballistic Gun Assault Rifle Build | -11 -10 -10 ------- Run | Yrd Mat Min Slots Evolved . | . . . Power . | . . . Propulsion . | . . . Utility . | . . . Weapon . | . . . Parts Attached 28 | 6 19 3 Power 4 | 1 3 . Engine 4 | 1 3 . Core . | . . . Reactor . | . . . Propulsion 8 | 2 5 1 Treads 4 | . 3 1 Leg . | . . . Wheel 4 | 2 2 . Hover . | . . . Flight . | . . . Utility 3 | 1 2 . Device 1 | . 1 . Storage 2 | 1 1 . Processor . | . . . Hackware . | . . . Protection . | . . . Artifact . | . . . Weapon 13 | 2 9 2 Energy Gun 5 | 1 3 1 Energy Cannon . | . . . Ballistic Gun 8 | 1 6 1 Ballistic Cannon . | . . . Launcher . | . . . Special Weapon . | . . . Impact Weapon . | . . . Slashing Weapon . | . . . Piercing Weapon . | . . . Special Melee Weapon . | . . . Unidentified Prototypes . | . . . Parts Lost 6 | . 2 4 Power 1 | . 1 . Propulsion 2 | . 1 1 Utility . | . . . Weapon 3 | . . 3 Highest Loss Streak 2 | . 1 2 To Critical Strikes . | . . . Average Slot Usage (%) 95 | . 93 99 Engine 11 | . 10 14 Treads 15 | . 16 12 Wheel 12 | . 11 14 Device 12 | . 11 14 Storage 14 | . 14 14 Energy Gun 10 | . 8 13 Ballistic Gun 17 | . 19 13 Naked Turns . | . . . Heaviest Build 33 | 12 33 31 Greatest Support 40 | 26 40 26 Greatest Overweight (x) 3 | . 3 1 Average Overweight (x) 1 | . 1 1 Largest Inventory Capacity 15 | 8 15 15 Average Capacity 14 | 6 14 15 Most Carried 13 | 6 13 13 Average Carried 11 | 3 10 12 Final Capacity 15 | 8 15 15 Final Carried 13 | 6 13 13 Class Distribution -------------------- 100% | Mutant Dominant Class ---------------- Mutant | -10/Materials Mutant | -10/Mines Resources | -11 -10 -10 ----------- Run | Yrd Mat Min Matter Collected 648 | 182 418 48 Remotely . | . . . Salvage Created 802 | . 667 135 Parts 57 | . 49 8 Haulers Intercepted . | . . . Recyclers Shooed 1 | . 1 . Parts Field Recycled . | . . . Retrieved Matter . | . . . Parts Self-Destructed . | . . . Prevented . | . . . Kills | -11 -10 -10 ------- Run | Yrd Mat Min Combat Hostiles Destroyed 20 | . 15 5 Guns 18 | . 14 4 AOE 2 | . 1 1 Classes Destroyed 6 | . 6 . Worker 1 | . 1 . Recycler 1 | . 1 . Operator 2 | . 2 . Watcher 2 | . 2 . Swarmer 6 | . 3 3 Grunt 14 | . 12 2 Best Kill Streak 4 | . 4 3 Combat Bots Only 4 | . 4 3 Max Kills in Single Turn 2 | . 2 1 Gunslinging . | . . . Exploded 1 | . 1 1 Melee . | . . . Uniques/NPCs Destroyed . | . . . Combat | -11 -10 -10 -------- Run | Yrd Mat Min Hostile Shots Fired 98 | . 83 15 Missed 14 | . 13 1 Damage Taken 1086 | . 837 249 Core 252 | . 160 92 Absorbed by Shields . | . . . Core Remaining (%) 100 | 100 . . Volleys Fired 85 | . 75 10 Largest 2 | . 2 2 Hottest 85 | . 85 65 Shots Fired 168 | . 150 18 Gun 168 | . 150 18 Cannon . | . . . Launcher . | . . . Special . | . . . Kinetic 99 | . 91 8 Thermal 53 | . 46 7 Explosive . | . . . Electromagnetic 16 | . 13 3 Robot Hit Streak 11 | . 11 5 Robot Miss Streak 4 | . 4 3 Penetration Max . | . . . Secondary Targets 5 | . 5 . Max Gunslinging Chain 1 | . 1 . Shots Hit Robots 104 | . 93 11 Core Hits 45 | . 36 9 Critical Kills . | . . . Critical Parts Destroyed 1 | . 1 . Critical Strikes 3 | . 3 . Burn 1 | . 1 . Destroy 1 | . 1 . Corrupt 1 | . 1 . Melee Attacks . | . . . Impact . | . . . Slashing . | . . . Piercing . | . . . Sneak Attacks . | . . . Combat Hostiles . | . . . Follow-up Attacks . | . . . Damage Inflicted 1332 | . 1162 170 Guns 1209 | . 1081 128 Cannons . | . . . Explosions 123 | . 81 42 Melee . | . . . Ramming . | . . . Kinetic 588 | . 529 59 Thermal 557 | . 472 85 Explosive . | . . . Electromagnetic 187 | . 161 26 Impact . | . . . Slashing . | . . . Piercing . | . . . Highest Corruption . | . . . Average Corruption . | . . . Corruption Purged . | . . . Corruption Blocked . | . . . Overload Shots . | . . . Overflow Damage 41 | . 38 3 Projectiles . | . . . Explosions 41 | . 38 3 Melee . | . . . Knockbacks . | . . . Impact . | . . . Kinetic . | . . . Secondary . | . . . Self-Inflicted Damage 53 | . 38 15 Shots 2 | . 1 1 Rammed . | . . . Targets Rammed . | . . . Kicked . | . . . Crushed . | . . . Highest Temperature 298 | . 298 1 Average Temperature 119 | . 121 1 Received Heat Transfer 462 | . 429 33 Siege Activations . | . . . Robots Corrupted . | . . . Combat Hostiles . | . . . Parts Fried 1 | . 1 . Impact Corruptions . | . . . Robots Melted . | . . . Combat Hostiles . | . . . Parts Melted 1 | . 1 . Heat Transferred 1207 | . 1007 200 Parts Sabotaged . | . . . Parts Stolen . | . . . Parts Stripped . | . . . Power Chain Reactions 2 | . 1 1 Alert | -11 -10 -10 ------- Run | Yrd Mat Min Peak Influence 212 | . 212 97 Initial 2 | . . 2 Average 75 | . 86 59 Maximum Alert Level 1 | . 1 . Low Security (%) 97 | 100 96 100 Level 1 2 | . 3 . Level 2 . | . . . Level 3 . | . . . Level 4 . | . . . Level 5 . | . . . High Security . | . . . Max Security . | . . . Squads Dispatched 4 | . 4 . Investigation 2 | . 2 . Extermination . | . . . Reinforcement 2 | . 2 . Assault . | . . . Garrison . | . . . Intercept . | . . . Searches Triggered . | . . . Construction Impeded . | . . . Haulers Reinforced . | . . . Active Scanning Responses . | . . . Cargo Convoy Interrupts . | . . . Stealth | -11 -10 -10 --------- Run | Yrd Mat Min Distress Signals 1 | . 1 . Communications Jammed . | . . . Distress Signals . | . . . Times Spotted 37 | . 30 7 Peak Tracking Total 5 | . 5 4 Tactical Retreats . | . . . Traps | -11 -10 -10 ------- Run | Yrd Mat Min Traps Triggered 2 | . 2 . Indirectly . | . . . Trap Hack Attempts . | . . . Triggered . | . . . Disarmed . | . . . Reprogrammed . | . . . Reused . | . . . Traps Extracted . | . . . Installed . | . . . Triggered . | . . . Machines | -11 -10 -10 ---------- Run | Yrd Mat Min Machines Disabled . | . . . Max in Single Turn . | . . . Machines Repaired . | . . . Machines Dismantled . | . . . Machines Sabotaged . | . . . Overloaded Fab Kills . | . . . Hacking | -11 -10 -10 --------- Run | Yrd Mat Min Machines Accessed 6 | . 6 . Terminals 6 | . 6 . Fabricators . | . . . Repair Stations . | . . . Recycling Units . | . . . Scanalyzers . | . . . Garrison Access . | . . . Total Hacks 15 | . 15 . Successful 10 | . 10 . Failed 5 | . 5 . Catastrophic . | . . . Database Lockouts . | . . . Manual 15 | . 15 . Terminals 15 | . 15 . Fabricators . | . . . Repair Stations . | . . . Recycling Units . | . . . Scanalyzers . | . . . Garrison Access . | . . . Terminal Hacks 5 | . 5 . Branch Access Points 1 | . 1 . Terminal Index 1 | . 1 . Alert Level 1 | . 1 . Unreport Threat 1 | . 1 . Locate Traps 1 | . 1 . Fabricator Hacks . | . . . Repair Station Hacks . | . . . Recycling Unit Hacks . | . . . Scanalyzer . | . . . Garrison Access Hacks . | . . . Unauthorized Hacks 5 | . 5 . Terminals 5 | . 5 . Track 1 | . 1 . Botnet 3 | . 3 . Operators 1 | . 1 . Fabricators . | . . . Repair Stations . | . . . Recycling Units . | . . . Scanalyzers . | . . . Garrison Access . | . . . Data Cores Recovered . | . . . Used . | . . . Hacking Detections 6 | . 6 . Full Trace Events . | . . . Feedback Events . | . . . Feedback Blocked . | . . . Robot Schematics Acquired . | . . . Robots Built . | . . . Authchips . | . . . Time . | . . . Total Robot Build Rating . | . . . Part Schematics Acquired . | . . . Parts Built . | . . . Authchips . | . . . Time . | . . . Total Part Build Rating . | . . . Parts Repaired . | . . . Time . | . . . Parts Recycled . | . . . Recycled Matter . | . . . Retrieved Matter . | . . . Retrieved Components . | . . . Parts Scanalyzed . | . . . Part Schematics Acquired . | . . . Parts Damaged . | . . . Bothacking | -11 -10 -10 ------------ Run | Yrd Mat Min Used RIF Installer . | . . . Robots Hacked . | . . . Non-combat . | . . . Combat . | . . . Robot Hacks Applied . | . . . Relay Couplers Released . | . . . Fabnet Peak Effective % . | . . . Robots Rewired . | . . . Allies Hacked . | . . . Hacks Repelled . | . . . Allies | -11 -10 -10 -------- Run | Yrd Mat Min Total Allies 3 | . . 3 Largest Group 3 | . . 3 Highest-Rated Group 40 | . . 40 Highest-Rated Ally 16 | . . 16 Total Orders . | . . . Ally Attacks 5 | . . 5 Total Damage 60 | . . 60 Kills . | . . . Allies Corrupted . | . . . Allies Melted . | . . . Intel | -11 -10 -10 ------- Run | Yrd Mat Min Robot Analysis Total . | . . . Derelict Logs Recovered 1 | . . 1 Drone Launches . | . . . Drone Recoveries . | . . . Exploration | -11 -10 -10 ------------- Run | Yrd Mat Min Turns Passed 2012 | 54 1342 616 Spaces Moved 1094 | 45 795 254 Core 1 | 1 . . Treads 480 | . 247 233 Legs . | . . . Wheels 613 | 44 548 21 Hover . | . . . Flight . | . . . Fastest Speed 50 | 50 90 105 Average Speed 150 | 86 129 228 Slowest Speed 240 | 90 160 240 Overloaded Moves . | . . . Propulsion Burnouts . | . . . Robots Hopped . | . . . Cave-ins Triggered . | . . . Exploration Rate (%) 44 | 4 89 41 Regions Visited 2 Branch Regions 1 Pre-discovered Areas . | . . . Known Exits Taken 1 | . 1 . Unknown Exits Taken 1 | 1 . . Scrap Searched . | . . . Spaces Dug . | . . . Terrain Destroyed 7 | . 2 5 Melee . | . . . Projectile . | . . . AOE 7 | . 2 5 Terrain Rammed . | . . . Walls Destroyed . | . . . Machines Disabled . | . . . Actions | -11 -10 -10 --------- Run | Yrd Mat Min Total 1288 | 56 961 271 Wait 61 | . 60 1 Move 1092 | 44 794 254 Hop . | . . . Pick Up 18 | 6 9 3 Fast Attach 11 | 6 5 . Attach 4 | . 1 3 Detach . | . . . Swap 13 | . 13 . Drop 4 | . 4 . Fire 85 | . 75 10 Melee . | . . . Ram . | . . . Kick . | . . . Crush . | . . . Escape Stasis . | . . . Rewire . | . . . Trap . | . . . Miscellaneous . | . . . Route ------- -11/Scrapyard -10/Materials (discovered 4 exits: [*Mat x2] / *Min x2) -10/Mines (discovered 1 exit: [*Mat]) History --------- Turn | Location | Event 24 | -11/Scrapyard | Discovered new exit (range 16) 55 | -11/Scrapyard | Entered Materials 318 | -10/Materials | Build established: Mutant 546 | -10/Materials | Discovered new exit (range 12) 606 | -10/Materials | Discovered new exit (range 11) 723 | -10/Materials | Discovered new exit (range 12) 806 | -10/Materials | Core integrity fell below 50% 1260 | -10/Materials | Discovered new exit (range 8) 1384 | -10/Materials | Identified exit to Mines 1397 | -10/Materials | Entered Mines 1429 | -10/Mines | Learned 8 Materials zone layouts 1581 | -10/Mines | A weapon hastily lodged in a ceiling crevice suddenly fell to the ground 1812 | -10/Mines | Discovered new exit (range 8) 1874 | -10/Mines | Assisted by bots powering up and referring to "LRC-V3" 1991 | -10/Mines | Assembled infested the area 2007 | -10/Mines | Core integrity fell below 20% 2013 | -10/Mines | Destroyed by as-74749 with Assembled Rifle Last Messages --------------- 01457_ Acquired 22 matter. 01467_ Acquired Imp. Heat Sink. 01567_ R-06 Scavenger collects Lgt. Ion Engine. 01581_ A Mak. Axe has been hastily shoved under some rubble with a note attached: "Chop chop!" 01585_ Acquired Mak. Axe. 01642_ K-01 Serf collects debris. 01812_ EXIT=FOUND 01874_ Trooper 1a: "Hello LRC-V3. What is your command?" 01874_ Mercenary 1a: "Hello LRC-V3. What is your command?" 01874_ Trooper 1b: "Hello LRC-V3. What is your command?" 01937_ K-01 Serf cleans the Laser Drill. 01991_ ALERT: Infestation in the mines, dispatching Demolisher response squad. 02005_ D-53 Grenadier unfolds itself. 02006_ K-01 Serf collects debris. 02006_ Trooper 1a destroyed. 02006_ Sml. Laser destroyed. 02009_ Trooper 1b destroyed. 02011_ Mercenary 1a destroyed. Map ----- +----------------------------------------------------+ | ?????????????????????# #????## ###??? | | ?????????????????????# #?###### ##????? | | ?????????????????????# ### #### ##?????? | | ????????????????###### ## #?## #??????? | | ???????????????## #??## ?????? | | ???????######### ##???## ???? | | ??????##! ## ##?????# ##???? | | ?????## ### #??????## ##????? | | ?????# !% #### ##?## ##??????####?????? | | ????# != ##??# #??## ########????????? | | ????# #??# ##?## #??????? | | ????## ##??# ##??# #######?????????? | | ?????#####???## ##??## ##???????????????? | | ??????????????####???# ##????????????????? | | ?????????????????????# ##????????????????? | | ?????????????????????# ##???????????????? | | ????????????????????## ##??##??????????? | | ?????????????????#### ## #??????????? | | ?????????????##### a #?????????? | | ?????????????# # #?????????? | | ????????????## t## #????????? | | ????????????# == ##?# #???????? | | ????????????# [%% #??? ????????? | | ???????????## [ #???? ?????????? | | ???????????# d%= ##????????????????? | | ???????????# d @ ###?????????????????? | | ??????????## # ##???????????????????? | | ???######## ##### #????????????????????? | | ???# # #??## #????????????????????? | | ???# < ## #???## #????????????????????? | | ???# ### ##????###????????????????????? | | ???# """ #?# #????????????????????????????? | | ???# """ #?# #????????????????????????????? | | ???# """ #?# #????????????????????????????? | | ???# #?# #????????????????????????????? | | ???# """ ### #????????????????????????????? | | ???# """ #????????????????????????????? | | ???# """ # ####????????????????????????????? | | ???# # #???????????????????????????????? | | ???######## #???????????????????????????????? | | ??????????# #???????????????????????????????? | | ???????#### ##??????????????????????????????? | | ???##### #??????????????????????????????? | | ???# #??????????????????????????????? | | ???# #??????????????????????????????? | | ???# #??????????????????????????????? | | ???##### #??????????????????????????????? | | ???????# #??????????????????????????????? | | ???????# #??????????????????????????????? | | ???????# #??????????????????????????????? | +----------------------------------------------------+ Best States ------------- Heat Dissipation 39 Energy Generation 12 Energy Capacity 265 Matter Stores 300 Matter Capacity 300 Sight Range 16 Terrain Scan Density 10 Evasion (%) 42 Recoil Reduction 2 Item Schematics ----------------- None Robot Schematics ------------------ None Fabricated ------------ Nothing Alien Tech Used ----------------- None Achievements -------------- None Challenges ------------ None Game ------ Seed GravitonMachineRifle Manual? 0 Play Time 00:18:25 Cumulative 19.4 hours Start 2024.06.01 @ 08:23:05 End 2024.06.01 @ 08:39:01 Sessions 1 Manual Loads 0 Difficulty Rogue Special Mode None Game No. 22 Rogue 17 Adventurer 5 Explorer 0 Win Type - Total 0 Types 0/0/0/0/0/0/0/0/0 Lore% 21 Gallery% 26 Achievement% 23 Wizard Run 0 Options --------- Layout 0 ASCII 0 Keyboard 0 Movement Arrows Keybinds 0 Fullscreen 2 Font 24/Smallcaps Map View 76x56 Zoom Use 0% Tactical HUD 1 Map Filters NONE Filters NONE Steam 1 RUN: 8220ff0d-bddf-433d-8a75-ab8c73527a17